[Event "Titled Tuesday Blitz May 30 Early 2023"]
[White "Ziatdinov, Raset"]
[Black "Jegorovas, Aleksandras"]
[WhiteFideId "2015323"]
[BlackFideId "12801950"]
[WhiteElo "2220"]
[BlackElo "2247"]
[Result "1/2-1/2"]
[Round "08"]
[TimeControl "180+2"]
[Date "2023.05.30"]
[WhiteClock "0:01:06"]
[BlackClock "0:00:50"]

1. e4 {[%clk 0:03:00]}  e6 {[%clk 0:02:49]} 2. d4 {[%clk 0:03:00]}  d5 {[%clk 0:02:49]} 3. Nc3 {[%clk 0:03:00]}  Bb4 {[%clk 0:02:39]} 4. exd5 {[%clk 0:03:00]}  exd5 {[%clk 0:02:38]} 5. Bd3 {[%clk 0:03:01]}  Nc6 {[%clk 0:02:36]} 6. Ne2 {[%clk 0:03:02]}  Nge7 {[%clk 0:02:33]} 7. O-O {[%clk 0:03:02]}  O-O {[%clk 0:02:33]} 8. a3 {[%clk 0:03:02]}  Bxc3 {[%clk 0:02:29]} 9. bxc3 {[%clk 0:03:03]}  Bf5 {[%clk 0:02:27]} 10. Ng3 {[%clk 0:03:03]}  Bg6 {[%clk 0:02:26]} 11. Qf3 {[%clk 0:03:02]}  Qd7 {[%clk 0:02:21]} 12. Bd2 {[%clk 0:02:59]}  Rae8 {[%clk 0:02:18]} 13. Rfe1 {[%clk 0:02:59]}  Nc8 {[%clk 0:02:11]} 14. h3 {[%clk 0:02:52]}  Nb6 {[%clk 0:01:55]} 15. Nf5 {[%clk 0:02:40]}  Nc4 {[%clk 0:01:46]} 16. Bg5 {[%clk 0:02:37]}  f6 {[%clk 0:01:44]} 17. Bh4 {[%clk 0:02:33]}  Nd2 {[%clk 0:01:32]} 18. Qf4 {[%clk 0:02:33]}  Ne4 {[%clk 0:01:28]} 19. Bxe4 {[%clk 0:02:21]}  Rxe4 {[%clk 0:01:24]} 20. Rxe4 {[%clk 0:02:17]}  dxe4 {[%clk 0:01:24]} 21. g4 {[%clk 0:02:15]}  Bxf5 {[%clk 0:01:22]} 22. gxf5 {[%clk 0:02:14]}  Ne7 {[%clk 0:01:11]} 23. Qxe4 {[%clk 0:02:08]}  Nxf5 {[%clk 0:01:11]} 24. Re1 {[%clk 0:02:02]}  c6 {[%clk 0:01:10]} 25. Kg2 {[%clk 0:01:55]}  Kf7 {[%clk 0:01:09]} 26. Bg3 {[%clk 0:01:55]}  Re8 {[%clk 0:01:08]} 27. Qxe8+ {[%clk 0:01:49]}  Qxe8 {[%clk 0:01:08]} 28. Rxe8 {[%clk 0:01:50]}  Kxe8 {[%clk 0:01:08]} 29. Kf3 {[%clk 0:01:50]}  Kd7 {[%clk 0:01:08]} 30. Ke4 {[%clk 0:01:50]}  Ke6 {[%clk 0:01:08]} 31. c4 {[%clk 0:01:49]}  Ne7 {[%clk 0:01:07]} 32. Bb8 {[%clk 0:01:44]}  a6 {[%clk 0:01:06]} 33. a4 {[%clk 0:01:36]}  f5+ {[%clk 0:01:04]} 34. Ke3 {[%clk 0:01:36]}  b5 {[%clk 0:01:04]} 35. axb5 {[%clk 0:01:36]}  axb5 {[%clk 0:01:04]} 36. d5+ {[%clk 0:01:34]}  cxd5 {[%clk 0:01:02]} 37. cxb5 {[%clk 0:01:34]}  g5 {[%clk 0:00:58]} 38. Kd4 {[%clk 0:01:24]}  h5 {[%clk 0:00:58]} 39. c4 {[%clk 0:01:24]}  dxc4 {[%clk 0:00:57]} 40. Kxc4 {[%clk 0:01:25]}  g4 {[%clk 0:00:57]} 41. hxg4 {[%clk 0:01:24]}  fxg4 {[%clk 0:00:57]} 42. Kc5 {[%clk 0:01:24]}  h4 {[%clk 0:00:56]} 43. b6 {[%clk 0:01:14]}  Kd7 {[%clk 0:00:55]} 44. Bh2 {[%clk 0:01:11]}  Kc8 {[%clk 0:00:53]} 45. Kd6 {[%clk 0:01:08]}  Nf5+ {[%clk 0:00:53]} 46. Ke5 {[%clk 0:01:08]}  g3 {[%clk 0:00:52]} 47. fxg3 {[%clk 0:01:08]}  hxg3 {[%clk 0:00:50]} 48. Bg1 {[%clk 0:01:06]}  Nh4 {[%clk 0:00:50]} 49. Kf4 {[%clk 0:01:06]}  Ng6+ {[%clk 0:00:49]} 50. Kxg3 {[%clk 0:01:06]}  Kb7 {[%clk 0:00:49]} 51. Kf3 {[%clk 0:01:06]}  Ne7 {[%clk 0:00:49]} 52. Ke4 {[%clk 0:01:06]}  Nc8 {[%clk 0:00:50]} 53. Kd5 {[%clk 0:01:06]}  Nxb6+ {[%clk 0:00:50]} 1/2-1/2


[Site "https://www.chess.com"]

[Event "Titled Tuesday Blitz May 30 Early 2023"]
[White "LangesNasenhaar"]
[Black "Ardila, Oscar Humberto"]
[BlackFideId "4404742"]
[WhiteElo "2475"]
[BlackElo "1918"]
[Result "1-0"]
[Round "08"]
[TimeControl "180+2"]
[Date "2023.05.30"]
[WhiteClock "0:00:34"]
[BlackClock "0:00:37"]

1. d4 {[%clk 0:02:58]}  Nf6 {[%clk 0:02:59]} 2. Nc3 {[%clk 0:02:58]}  d5 {[%clk 0:02:59]} 3. Bf4 {[%clk 0:02:59]}  e6 {[%clk 0:02:59]} 4. Nb5 {[%clk 0:02:58]}  Na6 {[%clk 0:02:58]} 5. e3 {[%clk 0:02:59]}  Bd7 {[%clk 0:02:57]} 6. a4 {[%clk 0:02:58]}  Be7 {[%clk 0:02:56]} 7. Nf3 {[%clk 0:02:57]}  O-O {[%clk 0:02:56]} 8. Ne5 {[%clk 0:02:57]}  Be8 {[%clk 0:02:55]} 9. c3 {[%clk 0:02:53]}  c6 {[%clk 0:02:55]} 10. Na3 {[%clk 0:02:53]}  Nd7 {[%clk 0:02:54]} 11. Bd3 {[%clk 0:02:51]}  Nxe5 {[%clk 0:02:52]} 12. Bxe5 {[%clk 0:02:51]}  f6 {[%clk 0:02:47]} 13. Bg3 {[%clk 0:02:51]}  Bg6 {[%clk 0:02:45]} 14. O-O {[%clk 0:02:49]}  Bxd3 {[%clk 0:02:45]} 15. Qxd3 {[%clk 0:02:49]}  Nc7 {[%clk 0:02:40]} 16. b4 {[%clk 0:02:43]}  Ne8 {[%clk 0:02:40]} 17. e4 {[%clk 0:02:41]}  Nd6 {[%clk 0:02:38]} 18. f3 {[%clk 0:02:34]}  Qd7 {[%clk 0:02:37]} 19. c4 {[%clk 0:02:29]}  dxc4 {[%clk 0:02:30]} 20. Nxc4 {[%clk 0:02:29]}  Nxc4 {[%clk 0:02:30]} 21. Qxc4 {[%clk 0:02:29]}  Rad8 {[%clk 0:02:30]} 22. Rfd1 {[%clk 0:02:28]}  Kh8 {[%clk 0:02:25]} 23. b5 {[%clk 0:02:28]}  Rc8 {[%clk 0:02:22]} 24. Rab1 {[%clk 0:02:18]}  Rfd8 {[%clk 0:02:15]} 25. Bf2 {[%clk 0:02:11]}  f5 {[%clk 0:02:13]} 26. bxc6 {[%clk 0:01:59]}  Rxc6 {[%clk 0:02:13]} 27. Qb3 {[%clk 0:01:59]}  b6 {[%clk 0:02:09]} 28. d5 {[%clk 0:01:57]}  exd5 {[%clk 0:02:08]} 29. Rxd5 {[%clk 0:01:56]}  Rd6 {[%clk 0:02:07]} 30. Rbd1 {[%clk 0:01:51]}  Rxd5 {[%clk 0:01:54]} 31. Rxd5 {[%clk 0:01:48]}  Qc8 {[%clk 0:01:54]} 32. Rxd8+ {[%clk 0:01:38]}  Qxd8 {[%clk 0:01:54]} 33. exf5 {[%clk 0:01:36]}  h6 {[%clk 0:01:45]} 34. g3 {[%clk 0:01:30]}  Qd2 {[%clk 0:01:35]} 35. Qe3 {[%clk 0:01:16]}  Qd1+ {[%clk 0:01:32]} 36. Kg2 {[%clk 0:01:15]}  Bf6 {[%clk 0:00:54]} 37. g4 {[%clk 0:01:03]}  Qxa4 {[%clk 0:00:53]} 38. h4 {[%clk 0:01:00]}  Qd7 {[%clk 0:00:50]} 39. g5 {[%clk 0:00:55]}  hxg5 {[%clk 0:00:50]} 40. hxg5 {[%clk 0:00:55]}  Be7 {[%clk 0:00:50]} 41. Qf4 {[%clk 0:00:48]}  Bd6 {[%clk 0:00:46]} 42. Qh4+ {[%clk 0:00:46]}  Kg8 {[%clk 0:00:40]} 43. g6 {[%clk 0:00:34]}  Kf8 {[%clk 0:00:40]} 44. Qh8+ {[%clk 0:00:33]}  Ke7 {[%clk 0:00:40]} 45. Qxg7+ {[%clk 0:00:33]}  Kd8 {[%clk 0:00:41]} 46. Qxd7+ {[%clk 0:00:33]}  Kxd7 {[%clk 0:00:37]} 47. g7 {[%clk 0:00:34]} 1-0


[Site "https://www.chess.com"]

[Event "Titled Tuesday Blitz May 30 Early 2023"]
[White "Avazkhonov, Alikhon"]
[Black "Zaichenko, Daria"]
[WhiteFideId "14208504"]
[BlackFideId "4197453"]
[WhiteElo "1739"]
[BlackElo "2039"]
[Result "1-0"]
[Round "08"]
[TimeControl "180+2"]
[Date "2023.05.30"]
[WhiteClock "0:02:29"]
[BlackClock "0:00:00"]

1. d4 {[%clk 0:03:00]}  d5 {[%clk 0:02:55]} 2. c4 {[%clk 0:03:01]}  e6 {[%clk 0:02:55]} 3. Nc3 {[%clk 0:03:01]}  Be7 {[%clk 0:02:54]} 4. cxd5 {[%clk 0:03:02]}  exd5 {[%clk 0:02:53]} 5. Nf3 {[%clk 0:03:03]}  c6 {[%clk 0:02:45]} 6. Bf4 {[%clk 0:03:02]}  Bf5 {[%clk 0:02:44]} 7. e3 {[%clk 0:03:03]}  Nf6 {[%clk 0:02:44]} 8. Bd3 {[%clk 0:03:02]}  Bxd3 {[%clk 0:02:42]} 9. Qxd3 {[%clk 0:03:03]}  O-O {[%clk 0:02:42]} 10. O-O {[%clk 0:03:03]}  Nbd7 {[%clk 0:02:41]} 11. h3 {[%clk 0:03:04]}  c5 {[%clk 0:02:34]} 12. dxc5 {[%clk 0:03:02]}  Nxc5 {[%clk 0:02:34]} 13. Qd2 {[%clk 0:03:02]}  Nce4 {[%clk 0:02:29]} 14. Qd3 {[%clk 0:02:59]}  Nxc3 {[%clk 0:02:28]} 15. Qxc3 {[%clk 0:03:00]}  Qb6 {[%clk 0:02:27]} 16. Rfd1 {[%clk 0:02:58]}  Rfd8 {[%clk 0:02:24]} 17. Nd4 {[%clk 0:02:57]}  Rac8 {[%clk 0:02:22]} 18. Qb3 {[%clk 0:02:55]}  Qxb3 {[%clk 0:02:19]} 19. Nxb3 {[%clk 0:02:56]}  Rc2 {[%clk 0:02:18]} 20. Rd2 {[%clk 0:02:55]}  Rxd2 {[%clk 0:02:17]} 21. Nxd2 {[%clk 0:02:56]}  Rc8 {[%clk 0:02:17]} 22. Be5 {[%clk 0:02:48]}  Bb4 {[%clk 0:02:10]} 23. Nf3 {[%clk 0:02:41]}  Ne4 {[%clk 0:02:06]} 24. a3 {[%clk 0:02:41]}  Ba5 {[%clk 0:01:56]} 25. b4 {[%clk 0:02:40]}  Bb6 {[%clk 0:01:56]} 26. Rd1 {[%clk 0:02:40]}  f6 {[%clk 0:01:55]} 27. Bd4 {[%clk 0:02:29]}  Bxd4 {[%clk 0:00:00]} 28. Rxd4 {[%clk 0:02:29]} 1-0


[Site "https://www.chess.com"]

[Event "Titled Tuesday Blitz May 30 Early 2023"]
[White "Andreev, Konstantin"]
[Black "Borodavkin, Anatoly"]
[WhiteFideId "24239305"]
[BlackFideId "14150662"]
[WhiteElo "2106"]
[BlackElo "1991"]
[Result "1-0"]
[Round "08"]
[TimeControl "180+2"]
[Date "2023.05.30"]
[WhiteClock "0:00:43"]
[BlackClock "0:00:00"]

1. e4 {[%clk 0:03:00]}  e5 {[%clk 0:02:59]} 2. Nf3 {[%clk 0:02:59]}  Nf6 {[%clk 0:03:00]} 3. d4 {[%clk 0:02:59]}  Nxe4 {[%clk 0:02:59]} 4. Bd3 {[%clk 0:02:58]}  d5 {[%clk 0:02:54]} 5. Nxe5 {[%clk 0:02:57]}  Bd6 {[%clk 0:02:53]} 6. c4 {[%clk 0:02:54]}  c6 {[%clk 0:02:49]} 7. O-O {[%clk 0:02:51]}  O-O {[%clk 0:02:49]} 8. Qh5 {[%clk 0:02:44]}  Nd7 {[%clk 0:02:20]} 9. Nxd7 {[%clk 0:02:10]}  Bxd7 {[%clk 0:02:17]} 10. Nd2 {[%clk 0:02:09]}  Nf6 {[%clk 0:02:08]} 11. Qf3 {[%clk 0:02:07]}  Bg4 {[%clk 0:02:04]} 12. Qe3 {[%clk 0:02:03]}  Re8 {[%clk 0:01:57]} 13. Qg5 {[%clk 0:02:01]}  h6 {[%clk 0:01:50]} 14. Qh4 {[%clk 0:02:00]}  Bc7 {[%clk 0:01:30]} 15. h3 {[%clk 0:01:55]}  Be2 {[%clk 0:01:20]} 16. Bxe2 {[%clk 0:01:50]}  Rxe2 {[%clk 0:01:19]} 17. c5 {[%clk 0:01:49]}  b6 {[%clk 0:01:14]} 18. b4 {[%clk 0:01:47]}  a5 {[%clk 0:01:13]} 19. bxa5 {[%clk 0:01:47]}  bxc5 {[%clk 0:01:08]} 20. dxc5 {[%clk 0:01:45]}  Rxa5 {[%clk 0:01:04]} 21. Nb3 {[%clk 0:01:42]}  Raxa2 {[%clk 0:00:57]} 22. Rxa2 {[%clk 0:01:41]}  Rxa2 {[%clk 0:00:57]} 23. Re1 {[%clk 0:01:40]}  Kh7 {[%clk 0:00:47]} 24. Nd4 {[%clk 0:01:35]}  Ne4 {[%clk 0:00:44]} 25. Qxd8 {[%clk 0:01:28]}  Bxd8 {[%clk 0:00:44]} 26. Nxc6 {[%clk 0:01:29]}  Bc7 {[%clk 0:00:40]} 27. Be3 {[%clk 0:01:27]}  f5 {[%clk 0:00:26]} 28. Ne7 {[%clk 0:01:22]}  f4 {[%clk 0:00:21]} 29. Bd4 {[%clk 0:01:19]}  Rd2 {[%clk 0:00:19]} 30. Nxd5 {[%clk 0:01:17]}  Rxd4 {[%clk 0:00:19]} 31. Nxc7 {[%clk 0:01:16]}  Nxc5 {[%clk 0:00:19]} 32. Nb5 {[%clk 0:01:08]}  Rd2 {[%clk 0:00:17]} 33. Nc3 {[%clk 0:01:06]}  Nd3 {[%clk 0:00:15]} 34. Rf1 {[%clk 0:01:07]}  f3 {[%clk 0:00:14]} 35. gxf3 {[%clk 0:01:04]}  Ne5 {[%clk 0:00:13]} 36. Kg2 {[%clk 0:01:04]}  Rd3 {[%clk 0:00:13]} 37. Ne4 {[%clk 0:01:02]}  Nxf3 {[%clk 0:00:11]} 38. Nc5 {[%clk 0:01:01]}  Nh4+ {[%clk 0:00:11]} 39. Kh2 {[%clk 0:01:01]}  Rf3 {[%clk 0:00:10]} 40. Ne4 {[%clk 0:00:59]}  Rf4 {[%clk 0:00:09]} 41. Ng3 {[%clk 0:00:57]}  Nf3+ {[%clk 0:00:08]} 42. Kg2 {[%clk 0:00:57]}  Nh4+ {[%clk 0:00:08]} 43. Kh1 {[%clk 0:00:57]}  Rf3 {[%clk 0:00:07]} 44. Kh2 {[%clk 0:00:55]}  Rf4 {[%clk 0:00:07]} 45. Nh1 {[%clk 0:00:56]}  Rf7 {[%clk 0:00:05]} 46. Kg3 {[%clk 0:00:56]}  Nf5+ {[%clk 0:00:04]} 47. Kf4 {[%clk 0:00:55]}  g5+ {[%clk 0:00:03]} 48. Kg4 {[%clk 0:00:54]}  Kg6 {[%clk 0:00:03]} 49. Re1 {[%clk 0:00:47]}  h5+ {[%clk 0:00:04]} 50. Kf3 {[%clk 0:00:47]}  Nh4+ {[%clk 0:00:03]} 51. Kg3 {[%clk 0:00:46]}  Nf5+ {[%clk 0:00:03]} 52. Kh2 {[%clk 0:00:45]}  Nd4 {[%clk 0:00:02]} 53. Re8 {[%clk 0:00:43]}  Nf3+ {[%clk 0:00:02]} 54. Kg3 {[%clk 0:00:43]}  h4+ {[%clk 0:00:00]} 55. Kg2 {[%clk 0:00:43]} 1-0


[Site "https://www.chess.com"]

[Event "Titled Tuesday Blitz May 30 Early 2023"]
[White "Lonoff, Marc"]
[Black "Jakic, Ivan"]
[WhiteFideId "2001349"]
[BlackFideId "14504901"]
[WhiteElo "2134"]
[BlackElo "2370"]
[Result "0-1"]
[Round "08"]
[TimeControl "180+2"]
[Date "2023.05.30"]
[WhiteClock "0:02:04"]
[BlackClock "0:02:25"]

1. c4 {[%clk 0:02:59]}  Nf6 {[%clk 0:03:00]} 2. Nc3 {[%clk 0:02:59]}  Nc6 {[%clk 0:03:00]} 3. g3 {[%clk 0:02:59]}  e5 {[%clk 0:03:00]} 4. Bg2 {[%clk 0:02:59]}  g6 {[%clk 0:03:01]} 5. e4 {[%clk 0:02:58]}  Bg7 {[%clk 0:03:01]} 6. Nge2 {[%clk 0:02:58]}  O-O {[%clk 0:03:01]} 7. O-O {[%clk 0:02:59]}  d6 {[%clk 0:03:01]} 8. d3 {[%clk 0:02:58]}  Be6 {[%clk 0:02:59]} 9. h3 {[%clk 0:02:58]}  Qd7 {[%clk 0:02:59]} 10. Kh2 {[%clk 0:02:58]}  h6 {[%clk 0:02:56]} 11. Nd5 {[%clk 0:02:58]}  Nh7 {[%clk 0:02:55]} 12. f4 {[%clk 0:02:56]}  f5 {[%clk 0:02:55]} 13. Be3 {[%clk 0:02:56]}  Rae8 {[%clk 0:02:55]} 14. Qd2 {[%clk 0:02:56]}  Nd4 {[%clk 0:02:51]} 15. Nxd4 {[%clk 0:02:48]}  exd4 {[%clk 0:02:50]} 16. Bg1 {[%clk 0:02:48]}  c6 {[%clk 0:02:47]} 17. Nb4 {[%clk 0:02:48]}  fxe4 {[%clk 0:02:46]} 18. dxe4 {[%clk 0:02:29]}  Bxc4 {[%clk 0:02:46]} 19. Bxd4 {[%clk 0:02:25]}  Bxf1 {[%clk 0:02:45]} 20. Bxg7 {[%clk 0:02:24]}  Bxg2 {[%clk 0:02:43]} 21. Bxf8 {[%clk 0:02:24]}  Qxh3+ {[%clk 0:02:42]} 22. Kg1 {[%clk 0:02:04]}  Bxe4 {[%clk 0:02:25]} 0-1


[Site "https://www.chess.com"]

[Event "Titled Tuesday Blitz May 30 Early 2023"]
[White "Fiedorek, Michal"]
[Black "Antonova, Nadezhda"]
[WhiteFideId "1199528"]
[BlackFideId "14700182"]
[WhiteElo "2135"]
[BlackElo "1799"]
[Result "1-0"]
[Round "08"]
[TimeControl "180+2"]
[Date "2023.05.30"]
[WhiteClock "0:00:05"]
[BlackClock "0:00:00"]

1. e4 {[%clk 0:02:58]}  c5 {[%clk 0:02:57]} 2. Nf3 {[%clk 0:02:58]}  d6 {[%clk 0:02:57]} 3. d4 {[%clk 0:02:58]}  cxd4 {[%clk 0:02:57]} 4. Nxd4 {[%clk 0:02:59]}  Nf6 {[%clk 0:02:57]} 5. Nc3 {[%clk 0:03:00]}  a6 {[%clk 0:02:58]} 6. Nb3 {[%clk 0:03:00]}  e6 {[%clk 0:02:56]} 7. Be3 {[%clk 0:03:00]}  Be7 {[%clk 0:02:56]} 8. f3 {[%clk 0:03:01]}  O-O {[%clk 0:02:56]} 9. g4 {[%clk 0:03:01]}  Nc6 {[%clk 0:02:54]} 10. g5 {[%clk 0:03:01]}  Nd7 {[%clk 0:02:49]} 11. h4 {[%clk 0:03:01]}  b5 {[%clk 0:02:44]} 12. a3 {[%clk 0:02:55]}  Bb7 {[%clk 0:02:39]} 13. f4 {[%clk 0:02:52]}  b4 {[%clk 0:02:35]} 14. axb4 {[%clk 0:02:51]}  Nxb4 {[%clk 0:02:35]} 15. Qd2 {[%clk 0:02:49]}  d5 {[%clk 0:02:33]} 16. Bg2 {[%clk 0:02:41]}  Nb6 {[%clk 0:02:25]} 17. O-O-O {[%clk 0:02:23]}  Nc4 {[%clk 0:02:20]} 18. Qf2 {[%clk 0:02:22]}  Nxe3 {[%clk 0:02:18]} 19. Qxe3 {[%clk 0:02:22]}  Rc8 {[%clk 0:01:50]} 20. h5 {[%clk 0:02:20]}  Rc4 {[%clk 0:01:35]} 21. h6 {[%clk 0:02:05]}  g6 {[%clk 0:01:33]} 22. exd5 {[%clk 0:01:58]}  exd5 {[%clk 0:01:15]} 23. Qe5 {[%clk 0:01:44]}  f6 {[%clk 0:01:15]} 24. Qe6+ {[%clk 0:01:44]}  Kh8 {[%clk 0:01:15]} 25. Rhe1 {[%clk 0:01:42]}  Rc7 {[%clk 0:00:57]} 26. Nd4 {[%clk 0:01:28]}  Bc8 {[%clk 0:00:36]} 27. Qe2 {[%clk 0:01:25]}  fxg5 {[%clk 0:00:34]} 28. fxg5 {[%clk 0:01:09]}  Bxg5+ {[%clk 0:00:33]} 29. Kb1 {[%clk 0:01:09]}  Bxh6 {[%clk 0:00:31]} 30. Ne6 {[%clk 0:00:35]}  Bxe6 {[%clk 0:00:31]} 31. Qxe6 {[%clk 0:00:36]}  Bg7 {[%clk 0:00:29]} 32. Nxd5 {[%clk 0:00:29]}  Nxd5 {[%clk 0:00:24]} 33. Bxd5 {[%clk 0:00:30]}  Qb8 {[%clk 0:00:21]} 34. Bb3 {[%clk 0:00:30]}  a5 {[%clk 0:00:20]} 35. Re4 {[%clk 0:00:18]}  Rb7 {[%clk 0:00:16]} 36. Rh1 {[%clk 0:00:15]}  Rxb3 {[%clk 0:00:12]} 37. cxb3 {[%clk 0:00:11]}  Qg3 {[%clk 0:00:08]} 38. Reh4 {[%clk 0:00:10]}  Qd3+ {[%clk 0:00:08]} 39. Ka2 {[%clk 0:00:09]}  h6 {[%clk 0:00:08]} 40. Qe7 {[%clk 0:00:07]}  Qc2 {[%clk 0:00:07]} 41. Rxh6+ {[%clk 0:00:04]}  Kg8 {[%clk 0:00:06]} 42. Qe6+ {[%clk 0:00:04]}  Rf7 {[%clk 0:00:05]} 43. Rh8+ {[%clk 0:00:02]}  Bxh8 {[%clk 0:00:05]} 44. Qe8+ {[%clk 0:00:03]}  Rf8 {[%clk 0:00:04]} 45. Rxh8+ {[%clk 0:00:03]}  Kxh8 {[%clk 0:00:04]} 46. Qxf8+ {[%clk 0:00:04]}  Kh7 {[%clk 0:00:04]} 47. Qe7+ {[%clk 0:00:04]}  Kh6 {[%clk 0:00:04]} 48. Qe3+ {[%clk 0:00:04]}  Kg7 {[%clk 0:00:03]} 49. Qa7+ {[%clk 0:00:05]}  Kh6 {[%clk 0:00:03]} 50. Qxa5 {[%clk 0:00:05]}  g5 {[%clk 0:00:03]} 51. Qb6+ {[%clk 0:00:05]}  Kh5 {[%clk 0:00:02]} 52. Qd6 {[%clk 0:00:04]}  g4 {[%clk 0:00:02]} 53. Qh2+ {[%clk 0:00:05]}  Kg5 {[%clk 0:00:00]} 54. Qxc2 {[%clk 0:00:05]} 1-0


[Site "https://www.chess.com"]

[Event "Titled Tuesday Blitz May 30 Early 2023"]
[White "Lohani, Sujana"]
[Black "Koridze, Lile"]
[WhiteFideId "12311987"]
[BlackFideId "13612514"]
[WhiteElo "1718"]
[BlackElo "2047"]
[Result "0-1"]
[Round "08"]
[TimeControl "180+2"]
[Date "2023.05.30"]
[WhiteClock "0:00:00"]
[BlackClock "0:01:35"]

1. d4 {[%clk 0:01:39]}  Nf6 {[%clk 0:02:58]} 2. Nf3 {[%clk 0:01:38]}  d5 {[%clk 0:02:57]} 3. c4 {[%clk 0:01:39]}  e6 {[%clk 0:02:56]} 4. g3 {[%clk 0:01:39]}  Bb4+ {[%clk 0:02:54]} 5. Bd2 {[%clk 0:01:38]}  Be7 {[%clk 0:02:54]} 6. Bg2 {[%clk 0:01:37]}  O-O {[%clk 0:02:53]} 7. O-O {[%clk 0:01:37]}  c6 {[%clk 0:02:53]} 8. Qc2 {[%clk 0:01:37]}  b6 {[%clk 0:02:53]} 9. Rd1 {[%clk 0:01:35]}  Bb7 {[%clk 0:02:53]} 10. Nc3 {[%clk 0:01:33]}  Nbd7 {[%clk 0:02:52]} 11. e4 {[%clk 0:01:34]}  dxe4 {[%clk 0:02:52]} 12. Nxe4 {[%clk 0:01:34]}  Nxe4 {[%clk 0:02:53]} 13. Qxe4 {[%clk 0:01:33]}  Nf6 {[%clk 0:02:53]} 14. Qc2 {[%clk 0:01:32]}  Qc8 {[%clk 0:02:53]} 15. Bc3 {[%clk 0:01:32]}  Rd8 {[%clk 0:02:52]} 16. Re1 {[%clk 0:01:28]}  Qc7 {[%clk 0:02:42]} 17. Rad1 {[%clk 0:01:25]}  c5 {[%clk 0:02:40]} 18. dxc5 {[%clk 0:01:22]}  Qxc5 {[%clk 0:02:38]} 19. Bxf6 {[%clk 0:01:11]}  Bxf6 {[%clk 0:02:37]} 20. Ng5 {[%clk 0:00:54]}  Bxg5 {[%clk 0:02:30]} 21. Bxb7 {[%clk 0:00:53]}  Rab8 {[%clk 0:02:30]} 22. Be4 {[%clk 0:00:46]}  g6 {[%clk 0:02:29]} 23. h4 {[%clk 0:00:39]}  Bf6 {[%clk 0:02:29]} 24. b3 {[%clk 0:00:39]}  b5 {[%clk 0:02:28]} 25. h5 {[%clk 0:00:37]}  Qxh5 {[%clk 0:02:27]} 26. Kg2 {[%clk 0:00:36]}  bxc4 {[%clk 0:02:26]} 27. Qxc4 {[%clk 0:00:35]}  Rxd1 {[%clk 0:02:20]} 28. Bf3 {[%clk 0:00:33]}  Rd4 {[%clk 0:01:45]} 29. Qc7 {[%clk 0:00:21]}  Qb5 {[%clk 0:01:44]} 30. Rc1 {[%clk 0:00:13]}  Rd2 {[%clk 0:01:38]} 31. Qxa7 {[%clk 0:00:00]}  Bd4 {[%clk 0:01:35]} 0-1


[Site "https://www.chess.com"]

[Event "Titled Tuesday Blitz May 30 Early 2023"]
[White "Mikhaylova, Irina"]
[Black "salgadoLO"]
[WhiteFideId "4109040"]
[WhiteElo "1975"]
[BlackElo "2195"]
[Result "1-0"]
[Round "08"]
[TimeControl "180+2"]
[Date "2023.05.30"]
[WhiteClock "0:01:34"]
[BlackClock "0:00:00"]

1. d4 {[%clk 0:03:00]}  d5 {[%clk 0:02:58]} 2. Nf3 {[%clk 0:03:01]}  e6 {[%clk 0:02:58]} 3. c4 {[%clk 0:03:01]}  Nf6 {[%clk 0:02:55]} 4. Nc3 {[%clk 0:03:02]}  a6 {[%clk 0:02:56]} 5. cxd5 {[%clk 0:03:01]}  exd5 {[%clk 0:02:55]} 6. Bg5 {[%clk 0:03:01]}  Be6 {[%clk 0:02:54]} 7. e3 {[%clk 0:03:01]}  Nbd7 {[%clk 0:02:50]} 8. Bd3 {[%clk 0:03:01]}  c6 {[%clk 0:02:49]} 9. Qc2 {[%clk 0:03:02]}  Bd6 {[%clk 0:02:47]} 10. O-O {[%clk 0:03:01]}  h6 {[%clk 0:02:42]} 11. Bh4 {[%clk 0:03:01]}  Qc7 {[%clk 0:02:38]} 12. a3 {[%clk 0:02:55]}  O-O {[%clk 0:02:34]} 13. b4 {[%clk 0:02:55]}  Rfe8 {[%clk 0:01:55]} 14. Rab1 {[%clk 0:02:51]}  Bg4 {[%clk 0:01:48]} 15. Bg3 {[%clk 0:02:51]}  Bxf3 {[%clk 0:01:43]} 16. gxf3 {[%clk 0:02:51]}  Bxg3 {[%clk 0:01:31]} 17. hxg3 {[%clk 0:02:50]}  Qd6 {[%clk 0:01:32]} 18. Na4 {[%clk 0:02:45]}  Re7 {[%clk 0:01:29]} 19. Nc5 {[%clk 0:02:45]}  Nf8 {[%clk 0:01:14]} 20. Kg2 {[%clk 0:02:41]}  Rb8 {[%clk 0:00:50]} 21. Bf5 {[%clk 0:02:32]}  g6 {[%clk 0:00:44]} 22. Bh3 {[%clk 0:02:32]}  Kg7 {[%clk 0:00:44]} 23. a4 {[%clk 0:02:28]}  Ne6 {[%clk 0:00:42]} 24. f4 {[%clk 0:02:22]}  Nf8 {[%clk 0:00:33]} 25. Rfc1 {[%clk 0:02:10]}  g5 {[%clk 0:00:28]} 26. b5 {[%clk 0:02:06]}  g4 {[%clk 0:00:16]} 27. bxa6 {[%clk 0:02:04]}  gxh3+ {[%clk 0:00:16]} 28. Kxh3 {[%clk 0:02:04]}  b6 {[%clk 0:00:16]} 29. Nb7 {[%clk 0:02:03]}  Qe6+ {[%clk 0:00:12]} 30. Kg2 {[%clk 0:02:03]}  Qe4+ {[%clk 0:00:11]} 31. Qxe4 {[%clk 0:02:03]}  Nxe4 {[%clk 0:00:12]} 32. Rxc6 {[%clk 0:02:01]}  Ne6 {[%clk 0:00:11]} 33. Rcxb6 {[%clk 0:01:53]}  Nd8 {[%clk 0:00:09]} 34. a7 {[%clk 0:01:47]}  Ra8 {[%clk 0:00:08]} 35. Nxd8 {[%clk 0:01:47]}  Rxd8 {[%clk 0:00:08]} 36. Rb8 {[%clk 0:01:47]}  Rxa7 {[%clk 0:00:07]} 37. Rxd8 {[%clk 0:01:47]}  Rxa4 {[%clk 0:00:07]} 38. Rxd5 {[%clk 0:01:41]}  Ra2 {[%clk 0:00:08]} 39. Rf1 {[%clk 0:01:39]}  Nc3 {[%clk 0:00:06]} 40. Rc5 {[%clk 0:01:37]}  Ne4 {[%clk 0:00:06]} 41. Re5 {[%clk 0:01:36]}  Nc3 {[%clk 0:00:06]} 42. Rc1 {[%clk 0:01:35]}  Ne2 {[%clk 0:00:00]} 43. Rc7 {[%clk 0:01:34]} 1-0


[Site "https://www.chess.com"]

[Event "Titled Tuesday Blitz May 30 Early 2023"]
[White "Clawitter, Craig"]
[Black "Lorparizangeneh, Shahin"]
[WhiteFideId "2023105"]
[BlackFideId "12521604"]
[WhiteElo "2203"]
[BlackElo "2526"]
[Result "0-1"]
[Round "08"]
[TimeControl "180+2"]
[Date "2023.05.30"]
[WhiteClock "0:00:07"]
[BlackClock "0:01:37"]

1. e4 {[%clk 0:03:00]}  e5 {[%clk 0:02:56]} 2. Nc3 {[%clk 0:03:00]}  Nc6 {[%clk 0:02:57]} 3. f4 {[%clk 0:02:59]}  exf4 {[%clk 0:02:57]} 4. Nf3 {[%clk 0:03:00]}  g5 {[%clk 0:02:57]} 5. g3 {[%clk 0:02:57]}  g4 {[%clk 0:02:56]} 6. Nh4 {[%clk 0:02:57]}  f3 {[%clk 0:02:51]} 7. d4 {[%clk 0:02:54]}  d6 {[%clk 0:02:47]} 8. Be3 {[%clk 0:02:53]}  Be7 {[%clk 0:02:40]} 9. Qd2 {[%clk 0:02:50]}  Bxh4 {[%clk 0:02:29]} 10. gxh4 {[%clk 0:02:51]}  Qxh4+ {[%clk 0:02:29]} 11. Bf2 {[%clk 0:02:51]}  Qh6 {[%clk 0:02:30]} 12. Be3 {[%clk 0:02:49]}  Qg7 {[%clk 0:02:27]} 13. O-O-O {[%clk 0:02:46]}  Bd7 {[%clk 0:02:26]} 14. Nd5 {[%clk 0:02:35]}  O-O-O {[%clk 0:02:25]} 15. Bb5 {[%clk 0:02:21]}  a6 {[%clk 0:02:13]} 16. Bxc6 {[%clk 0:02:07]}  Bxc6 {[%clk 0:02:14]} 17. Qa5 {[%clk 0:01:48]}  Bxd5 {[%clk 0:02:07]} 18. exd5 {[%clk 0:01:42]}  Ne7 {[%clk 0:02:00]} 19. Rd3 {[%clk 0:01:42]}  Nf5 {[%clk 0:01:58]} 20. Bf2 {[%clk 0:01:16]}  Rhe8 {[%clk 0:01:48]} 21. Rc3 {[%clk 0:01:13]}  Rd7 {[%clk 0:01:47]} 22. Rc6 {[%clk 0:01:11]}  Re2 {[%clk 0:01:41]} 23. Rxa6 {[%clk 0:01:09]}  bxa6 {[%clk 0:01:39]} 24. Qxa6+ {[%clk 0:01:06]}  Kd8 {[%clk 0:01:40]} 25. Re1 {[%clk 0:00:41]}  Qg5+ {[%clk 0:01:37]} 26. Kb1 {[%clk 0:00:36]}  Qd2 {[%clk 0:01:38]} 27. Bh4+ {[%clk 0:00:07]}  Nxh4 {[%clk 0:01:37]} 0-1


[Site "https://www.chess.com"]